fUST/lending_fUST_20241220
["ID","MTS","AMOUNT","RATE_DAILY","PERIOD"]
[346081282,1734694259223,-500.0,0.00023287,6]
[346081283,1734694259232,-500.0,0.00023287,6]
[346081284,1734694259242,-1271.47,0.00023287,6]
[346081285,1734694259252,-873.66,0.00023287,6]
[346081286,1734694259261,-799.21,0.00023287,6]
[346081287,1734694259271,-604.44,0.00023287,6]
[346081288,1734694259280,-464.7381809,0.00023294,2]
[346081289,1734694259290,-1000.0,0.00023321,2]
[346081290,1734694259299,-151.0,0.000234,9]
[346081291,1734694259308,-600.0,0.00023408,2]
[346081292,1734694259317,-563.93281642,0.0002341,2]
[346081293,1734694259326,-633.0,0.000235,10]
[346081294,1734694259335,-464.7381809,0.00023513,2]
[346081295,1734694259344,-500.0,0.00023561,6]
[346081296,1734694259353,-561.26,0.00023561,6]
[346081297,1734694259363,-500.0,0.00023561,6]
[346081298,1734694259372,-500.0,0.00023561,6]
[346081299,1734694259381,-500.0,0.00023561,6]
[346081300,1734694259390,-500.0,0.00023561,6]
[346081301,1734694259399,-500.0,0.00023561,6]
[346081302,1734694259409,-500.0,0.00023561,6]
[346081303,1734694259420,-955.43,0.00023561,6]
[346081304,1734694259429,-500.0,0.00023561,6]
[346081305,1734694259439,-500.0,0.00023561,6]
[346081306,1734694259448,-500.0,0.00023561,6]
[346081307,1734694259457,-200.0,0.00023561,6]
[346081308,1734694259466,-500.0,0.00023561,6]
[346081309,1734694259476,-500.0,0.00023561,6]
[346081310,1734694259485,-500.0,0.00023561,6]
[346081311,1734694259495,-500.0,0.00023561,6]
[346081312,1734694259506,-500.0,0.00023561,6]
[346081313,1734694259515,-1314.43,0.00023561,6]
[346081314,1734694259526,-500.0,0.00023561,6]
[346081315,1734694259537,-500.0,0.00023561,6]
[346081316,1734694259547,-867.18,0.00023561,6]
[346081317,1734694259557,-582.5,0.00023561,6]
[346081318,1734694259566,-500.0,0.00023561,6]
[346081319,1734694259575,-500.0,0.00023561,6]
[346081320,1734694259584,-500.0,0.00023561,6]
[346081321,1734694259594,-500.0,0.00023561,6]
[346081322,1734694259603,-500.0,0.00023561,6]
[346081323,1734694259612,-500.0,0.00023561,6]
[346081324,1734694259621,-500.0,0.00023561,6]
[346081325,1734694259630,-500.0,0.00023561,6]
[346081326,1734694259640,-500.0,0.00023561,6]
[346081327,1734694259649,-576.5,0.00023561,6]
[346081328,1734694259658,-500.0,0.00023561,6]
[346081329,1734694259670,-1212.24,0.00023561,6]
[346081330,1734694259679,-709.1,0.00023561,6]
[346081331,1734694259688,-507.75,0.00023561,6]
[346081332,1734694259697,-500.0,0.00023561,6]
[346081333,1734694259707,-500.0,0.00023561,6]
[346081334,1734694259716,-500.0,0.00023561,6]
[346081335,1734694259726,-500.0,0.00023561,6]
[346081336,1734694259736,-342.59447154,0.00023561,6]
[346081337,1734694259746,-500.0,0.00023561,6]
[346081338,1734694259755,-500.0,0.00023561,6]
[346081339,1734694259764,-500.0,0.00023561,6]
[346081340,1734694259773,-500.0,0.00023561,6]
[346081341,1734694259782,-500.0,0.00023561,6]
[346081342,1734694259791,-871.2,0.00023561,6]
[346081343,1734694259803,-500.0,0.00023561,6]
[346081344,1734694259813,-706.49,0.00023561,6]
[346081345,1734694259823,-500.0,0.00023561,6]
[346081346,1734694259832,-500.0,0.00023561,6]
[346081347,1734694259842,-500.0,0.00023561,6]
[346081348,1734694259851,-500.0,0.00023561,6]
[346081349,1734694259861,-719.46,0.00023561,6]
[346081350,1734694259870,-1463.71,0.00023561,6]
[346081351,1734694259879,-500.0,0.00023561,6]
[346081352,1734694259889,-1230.09,0.00023561,6]
[346081353,1734694259899,-1189.93,0.00023561,6]
[346081354,1734694259908,-579.49,0.00023561,6]
[346081355,1734694259919,-754.73,0.00023561,6]
[346081356,1734694259928,-500.0,0.00023561,6]
[346081357,1734694259938,-786.11,0.00023561,6]
[346081358,1734694259947,-500.0,0.00023561,6]
[346081359,1734694259956,-500.0,0.00023561,6]
[346081360,1734694259965,-849.68,0.00023561,6]
[346081361,1734694259974,-513.51,0.00023561,6]
[346081362,1734694259984,-500.0,0.00023561,6]
[346081363,1734694259994,-500.0,0.00023561,6]
[346081364,1734694260003,-500.0,0.00023561,6]
[346081365,1734694260012,-1646.32,0.00023561,6]
[346081366,1734694260021,-705.68,0.00023561,6]
[346081367,1734694260031,-500.0,0.00023561,6]
[346081368,1734694260040,-500.0,0.00023561,6]
[346081369,1734694260050,-500.0,0.00023561,6]
[346081370,1734694260060,-287.75003757,0.00023561,6]
[346081371,1734694260069,-500.0,0.00023561,6]
[346081372,1734694260079,-500.0,0.00023561,6]
[346081373,1734694260088,-500.0,0.00023561,6]
[346081374,1734694260097,-500.0,0.00023561,6]
[346081375,1734694260106,-500.0,0.00023561,6]
[346081376,1734694260115,-500.0,0.00023561,6]
[346081377,1734694260124,-500.0,0.00023561,6]
[346081378,1734694260134,-1545.88,0.00023561,6]
[346081379,1734694260143,-233.85,0.00023561,6]
[346081380,1734694260154,-857.37,0.00023561,6]
[346081381,1734694260166,-542.12,0.00023561,6]
[346081382,1734694260176,-500.0,0.00023561,6]
[346081383,1734694260185,-500.0,0.00023561,6]
[346081384,1734694260196,-500.0,0.00023561,6]
[346081385,1734694260205,-500.0,0.00023561,6]
[346081386,1734694260215,-500.0,0.00023561,6]
[346081387,1734694260224,-500.0,0.00023561,6]
[346081388,1734694260233,-500.0,0.00023561,6]
[346081389,1734694260243,-1524.16,0.00023561,6]
[346081390,1734694260252,-500.0,0.00023561,6]
[346081391,1734694260261,-1969.15,0.00023561,6]
[346081392,1734694260270,-500.0,0.00023561,6]
[346081393,1734694260279,-666.77,0.00023561,6]
[346081394,1734694260289,-1678.97,0.00023561,6]
[346081395,1734694260297,-1221.42,0.00023561,6]
[346081396,1734694260307,-919.53,0.00023561,6]
[346081397,1734694260316,-500.0,0.00023561,6]
[346081398,1734694260326,-500.0,0.00023561,6]
[346081399,1734694260335,-1954.57,0.00023561,6]
[346081400,1734694260345,-530.11,0.00023561,6]
[346081401,1734694260354,-1371.09,0.00023561,6]
[346081402,1734694260363,-570.76,0.00023561,6]
[346081403,1734694260373,-307.43293162,0.00023561,6]
[346081404,1734694260382,-500.0,0.00023561,6]
[346081405,1734694260391,-500.0,0.00023561,6]
[346081406,1734694260401,-647.7,0.00023561,6]
[346081407,1734694260413,-659.11,0.00023561,6]
[346081408,1734694260423,-1365.85,0.00023561,6]
[346081409,1734694260432,-500.0,0.00023561,6]
[346081410,1734694260441,-997.07,0.00023561,6]
[346081411,1734694260450,-1861.38,0.00023561,6]
[346081412,1734694260459,-500.0,0.00023561,6]
[346081413,1734694260469,-500.0,0.00023561,6]
[346081414,1734694260478,-544.52,0.00023561,6]
[346081415,1734694260487,-500.0,0.00023561,6]
[346081416,1734694260497,-667.64,0.00023561,6]
[346081417,1734694260507,-541.67,0.00023561,6]
[346081418,1734694260516,-532.84,0.00023561,6]
[346081419,1734694260525,-1142.47,0.00023561,6]
[346081420,1734694260535,-500.0,0.00023561,6]
[346081421,1734694260544,-551.66,0.00023561,6]
[346081422,1734694260554,-500.0,0.00023561,6]
[346081423,1734694260563,-1761.45,0.00023561,6]
[346081424,1734694260573,-500.0,0.00023561,6]
[346081425,1734694260582,-500.0,0.00023561,6]
[346081426,1734694260591,-500.0,0.00023561,6]
[346081427,1734694260600,-507.56,0.00023561,6]
[346081428,1734694260609,-500.0,0.00023561,6]
[346081429,1734694260618,-675.29,0.00023561,6]
[346081430,1734694260628,-515.72,0.00023561,6]
[346081431,1734694260637,-571.63,0.00023561,6]
[346081432,1734694260647,-500.0,0.00023561,6]
[346081433,1734694260657,-500.0,0.00023561,6]
[346081434,1734694260670,-558.46,0.00023561,6]
[346081435,1734694260680,-761.12,0.00023561,6]
[346081436,1734694260689,-2681.03,0.00023561,6]
[346081437,1734694260699,-1074.72,0.00023561,6]
[346081438,1734694260709,-500.0,0.00023561,6]
[346081439,1734694260719,-500.0,0.00023561,6]
[346081440,1734694260730,-942.86,0.00023561,6]
[346081441,1734694260740,-990.71,0.00023561,6]
[346081442,1734694260751,-1154.59,0.00023561,6]
[346081443,1734694260761,-500.0,0.00023561,6]
[346081444,1734694260770,-593.74,0.00023561,6]
[346081445,1734694260781,-500.0,0.00023561,6]
[346081446,1734694260791,-879.16,0.00023561,6]
[346081447,1734694260803,-1799.03,0.00023561,6]
[346081448,1734694260813,-500.0,0.00023561,6]
[346081449,1734694260822,-4685.48,0.00023561,6]
[346081450,1734694260832,-908.05,0.00023561,2]
[346081451,1734694260842,-2938.15,0.00023561,6]
[346081452,1734694260852,-500.0,0.00023561,6]
[346081453,1734694260862,-1116.74,0.00023561,6]
[346081454,1734694260871,-500.0,0.00023561,6]
[346081455,1734694260883,-500.0,0.00023561,6]
[346081456,1734694260893,-2325.47,0.00023561,6]
[346081457,1734694260903,-558.81,0.00023561,6]
[346081458,1734694260916,-1646.13,0.00023561,6]
[346081459,1734694260926,-11962.96,0.00023561,6]
[346081460,1734694260935,-500.0,0.00023561,6]
[346081461,1734694260944,-500.0,0.00023561,6]
[346081462,1734694260954,-47981.61,0.00023561,6]
[346081463,1734694260964,-500.0,0.00023561,6]
[346081464,1734694260975,-500.0,0.00023561,6]
[346081465,1734694260985,-500.0,0.00023561,6]
[346081466,1734694260994,-500.0,0.00023561,6]
[346081467,1734694261004,-856.87,0.00023561,6]
[346081468,1734694261013,-500.0,0.00023561,6]
[346081469,1734694261023,-500.0,0.00023561,6]
[346081470,1734694261032,-500.0,0.00023561,6]
[346081471,1734694261042,-13094.31,0.00023561,6]
[346081472,1734694261052,-1008.27,0.00023561,6]
[346081473,1734694261061,-500.0,0.00023561,6]
[346081474,1734694261071,-500.0,0.00023561,6]
[346081475,1734694261080,-500.0,0.00023561,6]
[346081476,1734694261090,-586.91,0.00023561,6]
[346081477,1734694261099,-500.0,0.00023561,6]
[346081478,1734694261108,-599.08,0.00023561,6]
[346081479,1734694261118,-3250.6,0.00023561,6]
[346081480,1734694261127,-500.0,0.00023561,6]
[346081481,1734694261136,-1929.64,0.00023561,6]
[346081482,1734694261146,-500.0,0.00023561,6]
[346081483,1734694261155,-6353.3,0.00023561,6]
[346081484,1734694261168,-3613.08,0.00023561,6]
[346081485,1734694261177,-699.51,0.00023561,6]
[346081486,1734694261187,-11618.82,0.00023561,6]
[346081487,1734694261196,-500.0,0.00023561,6]
[346081488,1734694261205,-522.89,0.00023561,6]
[346081489,1734694261215,-500.0,0.00023561,6]
[346081490,1734694261225,-890.01,0.00023561,6]
[346081491,1734694261235,-3149.43,0.00023561,6]
[346081492,1734694261245,-500.0,0.00023561,6]
[346081493,1734694261255,-500.0,0.00023561,6]
[346081494,1734694261264,-1610.1,0.00023561,6]
[346081495,1734694261274,-2966.71,0.00023561,6]
[346081496,1734694261284,-622.97,0.00023561,6]
[346081497,1734694261293,-500.0,0.00023561,6]
[346081498,1734694261303,-19666.42,0.00023561,6]
[346081499,1734694261312,-559.45,0.00023561,6]
[346081500,1734694261321,-1311.68,0.00023561,6]
[346081501,1734694261330,-500.0,0.00023561,6]
[346081502,1734694261340,-566.79,0.00023561,6]
[346081503,1734694261349,-745.45,0.00023561,6]
[346081504,1734694261358,-704.77,0.00023561,6]
[346081505,1734694261367,-596.95,0.00023561,6]
[346081506,1734694261377,-500.0,0.00023561,6]
[346081507,1734694261386,-500.0,0.00023561,6]
[346081508,1734694261395,-500.0,0.00023561,6]
[346081509,1734694261405,-3063.18,0.00023561,6]
[346081510,1734694261418,-500.0,0.00023561,6]
[346081511,1734694261428,-690.48,0.00023561,6]
[346081512,1734694261437,-500.0,0.00023561,6]
[346081513,1734694261446,-500.0,0.00023561,6]
[346081514,1734694261456,-500.0,0.00023561,6]
[346081515,1734694261465,-618.24,0.00023561,6]
[346081516,1734694261475,-500.0,0.00023561,6]
[346081517,1734694261484,-596.24,0.00023561,6]
[346081518,1734694261493,-1042.28,0.00023561,6]
[346081519,1734694261503,-669.3,0.00023561,6]
[346081520,1734694261512,-6968.41,0.00023561,6]
[346081521,1734694261521,-1173.52,0.00023561,6]
[346081522,1734694261531,-1358.68,0.00023561,6]
[346081523,1734694261540,-5013.94,0.00023561,2]
[346081524,1734694261549,-4843.52,0.00023561,6]
[346081525,1734694261559,-500.0,0.00023561,6]
[346081526,1734694261568,-1197.34,0.00023561,6]
[346081527,1734694261578,-2776.19,0.00023561,6]
[346081528,1734694261588,-3958.45,0.00023561,6]
[346081529,1734694261597,-500.0,0.00023561,6]
[346081530,1734694261607,-3361.23,0.00023561,6]
[346081531,1734694261616,-2543.32,0.00023561,6]
[346081532,1734694261625,-500.0,0.00023561,6]
[346081533,1734694261635,-6271.99,0.00023561,6]
[346081534,1734694261644,-3140.07,0.00023561,6]
[346081535,1734694261654,-1253.7,0.00023561,6]
[346081536,1734694261668,-500.0,0.00023561,6]
[346081537,1734694261678,-701.21,0.00023561,6]
[346081538,1734694261687,-674.87,0.00023561,6]
[346081539,1734694261697,-1029.79,0.00023561,6]
[346081540,1734694261706,-500.03,0.00023561,6]
[346081541,1734694261716,-500.0,0.00023561,6]
[346081542,1734694261726,-500.0,0.00023561,6]
[346081543,1734694261736,-1676.26,0.00023561,6]
[346081544,1734694261746,-517.63,0.00023561,6]
[346081545,1734694261756,-500.0,0.00023561,6]
[346081546,1734694261766,-2596.31,0.00023561,6]
[346081547,1734694261776,-890.04,0.00023561,6]
[346081548,1734694261785,-1816.44,0.00023561,6]
[346081549,1734694261795,-500.0,0.00023561,6]
[346081550,1734694261806,-567.12,0.00023561,6]
[346081551,1734694261818,-2920.79,0.00023561,6]
[346081552,1734694261828,-226.35922038,0.00023561,6]
[346081553,1734694261837,-1271.47,0.00023561,6]
[346081554,1734694261846,-873.66,0.00023561,6]
[346081555,1734694261855,-799.21,0.00023561,6]
[346081556,1734694261868,-604.44,0.00023561,6]
[346081557,1734694261878,-1500.0,0.00023722,2]
[346081558,1734694261887,-1500.0,0.00023722,2]
[346081559,1734694261902,-1500.0,0.00023722,2]
[346081560,1734694261914,-1500.0,0.00023722,2]
[346081561,1734694261924,-464.7381809,0.00023731,2]
[346081562,1734694261933,-563.93281642,0.00023808,2]
[346081563,1734694261943,-500.0,0.00023835,6]
[346081564,1734694261952,-561.26,0.00023835,6]
[346081565,1734694261962,-500.0,0.00023835,6]
[346081566,1734694261971,-500.0,0.00023835,6]
[346081567,1734694261982,-500.0,0.00023835,6]
[346081568,1734694261993,-500.0,0.00023835,6]
[346081569,1734694262002,-500.0,0.00023835,6]
[346081570,1734694262011,-500.0,0.00023835,6]
[346081571,1734694262021,-955.43,0.00023835,6]
[346081572,1734694262031,-500.0,0.00023835,6]
[346081573,1734694262040,-500.0,0.00023835,6]
[346081574,1734694262049,-500.0,0.00023835,6]
[346081575,1734694262059,-200.0,0.00023835,6]
[346081576,1734694262069,-500.0,0.00023835,6]
[346081577,1734694262078,-500.0,0.00023835,6]
[346081578,1734694262088,-500.0,0.00023835,6]
[346081579,1734694262098,-500.0,0.00023835,6]
[346081580,1734694262107,-500.0,0.00023835,6]
[346081581,1734694262117,-1314.43,0.00023835,6]
[346081582,1734694262127,-500.0,0.00023835,6]
[346081583,1734694262136,-500.0,0.00023835,6]
[346081584,1734694262146,-867.18,0.00023835,6]
[346081585,1734694262156,-582.5,0.00023835,6]
[346081586,1734694262167,-500.0,0.00023835,6]
[346081587,1734694262177,-500.0,0.00023835,6]
[346081588,1734694262187,-500.0,0.00023835,6]
[346081589,1734694262196,-500.0,0.00023835,6]
[346081590,1734694262206,-500.0,0.00023835,6]
[346081591,1734694262215,-500.0,0.00023835,6]
[346081592,1734694262225,-500.0,0.00023835,6]
[346081593,1734694262235,-500.0,0.00023835,6]
[346081594,1734694262244,-500.0,0.00023835,6]
[346081595,1734694262254,-576.5,0.00023835,6]
[346081596,1734694262263,-500.0,0.00023835,6]
[346081597,1734694262273,-1212.24,0.00023835,6]
[346081598,1734694262283,-709.1,0.00023835,6]
[346081599,1734694262295,-507.75,0.00023835,6]
[346081600,1734694262305,-500.0,0.00023835,6]
[346081601,1734694262315,-406.01372615,0.00023835,6]
[346081602,1734694262324,-500.0,0.00023835,6]
[346081603,1734694262335,-500.0,0.00023835,6]
[346081604,1734694262347,-500.0,0.00023835,6]
[346081605,1734694262357,-500.0,0.00023835,6]
[346081606,1734694262369,-500.0,0.00023835,6]
[346081607,1734694262382,-500.0,0.00023835,6]
[346081608,1734694262391,-500.0,0.00023835,6]
[346081609,1734694262401,-871.2,0.00023835,6]
[346081610,1734694262414,-500.0,0.00023835,6]
[346081611,1734694262423,-706.49,0.00023835,6]
[346081612,1734694262433,-500.0,0.00023835,6]
[346081613,1734694262443,-500.0,0.00023835,6]
[346081614,1734694262453,-500.0,0.00023835,6]
[346081615,1734694262463,-500.0,0.00023835,6]
[346081616,1734694262473,-719.46,0.00023835,6]
[346081617,1734694262483,-1463.71,0.00023835,6]
[346081618,1734694262493,-500.0,0.00023835,6]
[346081619,1734694262503,-1230.09,0.00023835,6]
[346081620,1734694262512,-1189.93,0.00023835,6]
[346081621,1734694262522,-579.49,0.00023835,6]
[346081622,1734694262532,-754.73,0.00023835,6]
[346081623,1734694262542,-500.0,0.00023835,6]
[346081624,1734694262552,-786.11,0.00023835,6]
[346081625,1734694262563,-500.0,0.00023835,6]
[346081626,1734694262573,-500.0,0.00023835,6]
[346081627,1734694262583,-849.68,0.00023835,6]
[346081628,1734694262593,-513.51,0.00023835,6]
[346081630,1734694262603,-500.0,0.00023835,6]
[346081631,1734694262614,-500.0,0.00023835,6]
[346081632,1734694262625,-500.0,0.00023835,6]
[346081633,1734694262636,-1646.32,0.00023835,6]
[346081634,1734694262646,-705.68,0.00023835,6]
[346081635,1734694262656,-525.65980173,0.00023835,6]
[346081636,1734694262672,-500.0,0.00023835,6]
[346081637,1734694262682,-500.0,0.00023835,6]
[346081638,1734694262692,-500.0,0.00023835,6]
[346081639,1734694262702,-500.0,0.00023835,6]
[346081640,1734694262711,-500.0,0.00023835,6]
[346081641,1734694262721,-500.0,0.00023835,6]
[346081642,1734694262731,-500.0,0.00023835,6]
[346081643,1734694262741,-500.0,0.00023835,6]
[346081644,1734694262751,-500.0,0.00023835,6]
[346081645,1734694262762,-1545.88,0.00023835,6]
[346081646,1734694262772,-233.85,0.00023835,6]
[346081647,1734694262782,-857.37,0.00023835,6]
[346081648,1734694262792,-542.12,0.00023835,6]
[346081649,1734694262803,-500.0,0.00023835,6]
[346081650,1734694262814,-500.0,0.00023835,6]
[346081651,1734694262825,-500.0,0.00023835,6]
[346081652,1734694262835,-500.0,0.00023835,6]
[346081653,1734694262845,-500.0,0.00023835,6]
[346081654,1734694262855,-500.0,0.00023835,6]
[346081655,1734694262865,-500.0,0.00023835,6]
[346081656,1734694262875,-1524.16,0.00023835,6]
[346081657,1734694262885,-500.0,0.00023835,6]
[346081658,1734694262896,-1969.15,0.00023835,6]
[346081659,1734694262906,-500.0,0.00023835,6]
[346081660,1734694262919,-666.77,0.00023835,6]
[346081661,1734694262928,-1678.97,0.00023835,6]
[346081662,1734694262939,-1221.42,0.00023835,6]
[346081663,1734694262948,-919.53,0.00023835,6]
[346081664,1734694262957,-500.0,0.00023835,6]
[346081665,1734694262967,-500.0,0.00023835,6]
[346081666,1734694262977,-1954.57,0.00023835,6]
[346081667,1734694262987,-530.11,0.00023835,6]
[346081668,1734694262997,-1371.09,0.00023835,6]
[346081669,1734694263008,-570.76,0.00023835,6]
[346081670,1734694263018,-500.0,0.00023835,6]
[346081671,1734694263027,-500.0,0.00023835,6]
[346081672,1734694263039,-647.7,0.00023835,6]
[346081673,1734694263051,-659.11,0.00023835,6]
[346081674,1734694263063,-1365.85,0.00023835,6]
[346081675,1734694263075,-500.0,0.00023835,6]
[346081676,1734694263088,-997.07,0.00023835,6]
[346081677,1734694263102,-1861.38,0.00023835,6]
[346081678,1734694263112,-500.0,0.00023835,6]
[346081679,1734694263122,-500.0,0.00023835,6]
[346081680,1734694263133,-544.52,0.00023835,6]
[346081681,1734694263143,-500.0,0.00023835,6]
[346081682,1734694263153,-667.64,0.00023835,6]
[346081683,1734694263166,-541.67,0.00023835,6]
[346081684,1734694263176,-532.84,0.00023835,6]
[346081685,1734694263187,-1142.47,0.00023835,6]
[346081686,1734694263197,-500.0,0.00023835,6]
[346081687,1734694263207,-551.66,0.00023835,6]
[346081688,1734694263217,-500.0,0.00023835,6]
[346081689,1734694263227,-1761.45,0.00023835,6]
[346081690,1734694263237,-500.0,0.00023835,6]
[346081691,1734694263247,-500.0,0.00023835,6]
[346081692,1734694263258,-500.0,0.00023835,6]
[346081693,1734694263268,-507.56,0.00023835,6]
[346081694,1734694263279,-500.0,0.00023835,6]
[346081695,1734694263290,-675.29,0.00023835,6]
[346081696,1734694263300,-515.72,0.00023835,6]
[346081697,1734694263311,-571.63,0.00023835,6]
[346081698,1734694263322,-500.0,0.00023835,6]
[346081699,1734694263526,-500.0,0.00023835,6]
[346081700,1734694263542,-558.46,0.00023835,6]
[346081701,1734694263552,-761.12,0.00023835,6]
[346081702,1734694263562,-2681.03,0.00023835,6]
[346081703,1734694263572,-1074.72,0.00023835,6]
[346081704,1734694263582,-509.83562489,0.00023835,6]
[346081705,1734694263592,-500.0,0.00023835,6]
[346081706,1734694263603,-942.86,0.00023835,6]
[346081707,1734694263612,-990.71,0.00023835,6]
[346081708,1734694263622,-1154.59,0.00023835,6]
[346081709,1734694263632,-500.0,0.00023835,6]
[346081710,1734694263642,-593.74,0.00023835,6]
[346081711,1734694263652,-556.22029606,0.00023835,6]
[346081712,1734694263665,-879.16,0.00023835,6]
[346081713,1734694263675,-1799.03,0.00023835,6]
[346081714,1734694263685,-500.0,0.00023835,6]
[346081715,1734694263695,-4685.48,0.00023835,6]
[346081716,1734694263705,-2938.15,0.00023835,6]
[346081717,1734694263715,-908.05,0.00023835,2]
[346081718,1734694263724,-500.0,0.00023835,6]
[346081719,1734694263734,-1116.74,0.00023835,6]
[346081720,1734694263744,-500.0,0.00023835,6]
[346081721,1734694263754,-500.0,0.00023835,6]
[346081722,1734694263766,-2325.47,0.00023835,6]
[346081723,1734694263776,-558.81,0.00023835,6]
[346081724,1734694263785,-1646.13,0.00023835,6]
[346081725,1734694263795,-11962.96,0.00023835,6]
[346081726,1734694263810,-500.0,0.00023835,6]
[346081727,1734694263820,-500.0,0.00023835,6]
[346081728,1734694263830,-47981.61,0.00023835,6]
[346081729,1734694263840,-500.0,0.00023835,6]
[346081730,1734694263851,-500.0,0.00023835,6]
[346081731,1734694263860,-500.0,0.00023835,6]
[346081732,1734694263870,-500.0,0.00023835,6]
[346081733,1734694263880,-856.87,0.00023835,6]
[346081734,1734694263890,-500.0,0.00023835,6]
[346081735,1734694263900,-500.0,0.00023835,6]
[346081736,1734694263910,-500.0,0.00023835,6]
[346081737,1734694263922,-13094.31,0.00023835,6]
[346081738,1734694263931,-1008.27,0.00023835,6]
[346081739,1734694263941,-500.0,0.00023835,6]
[346081740,1734694263951,-500.0,0.00023835,6]
[346081741,1734694263961,-500.0,0.00023835,6]
[346081742,1734694263971,-586.91,0.00023835,6]
[346081743,1734694263980,-500.0,0.00023835,6]
[346081744,1734694263990,-599.08,0.00023835,6]
[346081745,1734694264000,-3250.6,0.00023835,6]
[346081746,1734694264010,-500.0,0.00023835,6]
[346081747,1734694264019,-1929.64,0.00023835,6]
[346081748,1734694264029,-500.0,0.00023835,6]
[346081749,1734694264038,-6353.3,0.00023835,6]
[346081750,1734694264048,-3613.08,0.00023835,6]
[346081751,1734694264058,-699.51,0.00023835,6]
[346081752,1734694264068,-11618.82,0.00023835,6]
[346081753,1734694264077,-500.0,0.00023835,6]
[346081754,1734694264087,-522.89,0.00023835,6]
[346081755,1734694264097,-500.0,0.00023835,6]
[346081756,1734694264107,-890.01,0.00023835,6]
[346081757,1734694264116,-3149.43,0.00023835,6]
[346081758,1734694264126,-500.0,0.00023835,6]
[346081759,1734694264136,-443.63706688,0.00023835,6]
[346081760,1734694264145,-1610.1,0.00023835,6]
[346081761,1734694264155,-2966.71,0.00023835,6]
[346081762,1734694264167,-622.97,0.00023835,6]
[346081763,1734694264177,-500.0,0.00023835,6]
[346081764,1734694264186,-19666.42,0.00023835,6]
[346081765,1734694264195,-559.45,0.00023835,6]
[346081766,1734694264205,-1311.68,0.00023835,6]
[346081767,1734694264215,-500.0,0.00023835,6]
[346081768,1734694264224,-566.79,0.00023835,6]
[346081769,1734694264237,-745.45,0.00023835,6]
[346081770,1734694264247,-704.77,0.00023835,6]
[346081771,1734694264257,-596.95,0.00023835,6]
[346081772,1734694264266,-500.0,0.00023835,6]
[346081773,1734694264276,-500.0,0.00023835,6]
[346081774,1734694264287,-500.0,0.00023835,6]
[346081775,1734694264296,-3063.18,0.00023835,6]
[346081776,1734694264306,-500.0,0.00023835,6]
[346081777,1734694264315,-690.48,0.00023835,6]
[346081778,1734694264325,-500.0,0.00023835,6]
[346081779,1734694264334,-500.0,0.00023835,6]
[346081780,1734694264344,-500.0,0.00023835,6]
[346081781,1734694264353,-618.24,0.00023835,6]
[346081782,1734694264363,-604.95649731,0.00023835,6]